bitfinex-derivatives/quotes_BTCF0:USTF0_20250924
["timestamp","ask_amount","ask_price","bid_price","bid_amount"]
[1758712823238,0.27985932,113080.0,113070.0,0.79603]
[1758712823442,0.27985932,113080.0,113070.0,1.07488932]
[1758712823740,0.27985932,113080.0,113070.0,1.18528236]
[1758712824944,0.27985932,113080.0,113070.0,0.90642304]
[1758712825145,0.27985932,113080.0,113070.0,1.18528236]
[1758712827342,0.001,113080.0,113070.0,1.18528236]
[1758712827753,0.27985932,113080.0,113070.0,1.18528236]
[1758712828247,0.27985932,113080.0,113070.0,0.79603]
[1758712828439,0.27985932,113080.0,113070.0,1.07488932]
[1758712831346,0.001,113080.0,113070.0,1.16332619]
[1758712832054,0.27985932,113080.0,113070.0,1.16332619]
[1758712832244,0.001,113080.0,113070.0,1.16332619]
[1758712832445,0.27985932,113080.0,113070.0,1.16332619]
[1758712832852,0.001,113080.0,113070.0,1.16332619]
[1758712833149,0.27985932,113080.0,113070.0,1.16332619]
[1758712833538,0.001,113080.0,113070.0,1.16332619]
[1758712833746,0.27985932,113080.0,113070.0,1.16332619]
[1758712834653,0.001,113080.0,113070.0,1.16332619]
[1758712834853,0.27985932,113080.0,113070.0,1.16332619]
[1758712835850,0.001,113080.0,113070.0,1.16332619]
[1758712836149,0.27985932,113080.0,113070.0,1.16332619]
[1758712837252,0.001,113080.0,113070.0,1.16332619]
[1758712837549,0.27985932,113080.0,113070.0,1.16332619]
[1758712837750,0.27985932,113080.0,113070.0,1.2422745]
[1758712837951,0.27985932,113080.0,113070.0,1.16332619]
[1758712839153,0.001,113080.0,113070.0,1.16332619]
[1758712839346,0.27885932,113090.0,113080.0,0.03576]
[1758712839652,0.27885932,113090.0,113080.0,0.39656]
[1758712840050,0.27885932,113090.0,113080.0,0.4053763]
[1758712840255,0.27885932,113100.0,113090.0,0.03576]
[1758712840457,0.55771864,113100.0,113090.0,0.39656]
[1758712841456,0.57775864,113100.0,113090.0,0.39656]
[1758712841650,0.59375864,113100.0,113090.0,0.39656]
[1758712842459,0.58775864,113100.0,113090.0,0.39656]
[1758712843253,0.01,113100.0,113090.0,0.39656]
[1758712843648,0.28885932,113100.0,113090.0,0.39656]
[1758712843853,0.28985932,113100.0,113090.0,0.39656]
[1758712845059,0.28985932,113100.0,113090.0,0.47550501]
[1758712845959,0.011,113100.0,113090.0,0.39656]
[1758712846151,0.28985932,113100.0,113090.0,0.39656]
[1758712847560,0.28985932,113100.0,113090.0,0.47550501]
[1758712849757,0.011,113100.0,113090.0,0.47550501]
[1758712849958,0.28985932,113100.0,113090.0,0.47550501]
[1758712850560,0.58875864,113100.0,113090.0,0.47550501]
[1758712855063,0.58875864,113100.0,113090.0,0.39656]
[1758712855652,0.58875864,113100.0,113090.0,0.47550501]
[1758712860062,0.58875864,113100.0,113090.0,0.39656]
[1758712860562,0.27883086,113100.0,113090.0,0.39656]
[1758712877274,0.03104,113100.0,113090.0,0.39656]
[1758712877576,0.27883086,113100.0,113090.0,0.39656]
[1758712885677,0.25879086,113100.0,113090.0,0.39656]
[1758712886285,0.27883086,113100.0,113090.0,0.39656]
[1758712887388,0.25879086,113100.0,113090.0,0.39656]
[1758712887585,0.011,113100.0,113090.0,0.39656]
[1758712889388,0.25879086,113100.0,113090.0,0.39656]
[1758712889589,0.27883086,113100.0,113090.0,0.39656]
[1758712892289,0.25879086,113100.0,113090.0,0.39656]
[1758712893491,0.27883086,113100.0,113090.0,0.39656]
[1758712908313,0.03104,113100.0,113090.0,0.39656]
[1758712908513,0.27883086,113100.0,113090.0,0.39656]
[1758712910717,0.29643934,113100.0,113090.0,0.39656]
[1758712915417,0.29643934,113100.0,113090.0,0.37361]
[1758712915616,0.29643934,113100.0,113090.0,0.39548]
[1758712922628,0.60621528,113100.0,113090.0,0.39548]
[1758712927128,0.5886068,113100.0,113090.0,0.39548]
[1758712930534,0.03104,113100.0,113090.0,0.39548]
[1758712930729,0.5886068,113100.0,113090.0,0.39548]
[1758712936140,0.5886068,113100.0,113090.0,0.50610192]
[1758712938143,0.5886068,113100.0,113090.0,0.39548]
[1758712946652,0.03104,113100.0,113090.0,0.39548]
[1758712946948,0.5886068,113100.0,113090.0,0.39548]
[1758712952851,0.60669317,113100.0,113090.0,0.39548]
[1758712953752,0.60669317,113100.0,113090.0,0.50610192]
[1758712956146,0.04912637,113100.0,113090.0,0.50610192]
[1758712956354,0.60669317,113100.0,113090.0,0.50610192]
[1758712956852,0.60669317,113100.0,113090.0,0.39548]
[1758712960258,0.61564387,113100.0,113090.0,0.39548]
[1758712960457,0.61564387,113100.0,113090.0,0.47471372]
[1758712962057,0.60669317,113100.0,113090.0,0.47471372]
[1758712963356,0.02908637,113100.0,113090.0,0.47471372]
[1758712963557,0.5685668,113100.0,113090.0,0.47471372]
[1758712964452,0.011,113100.0,113090.0,0.47471372]
[1758712964655,0.5685668,113100.0,113090.0,0.47471372]
[1758712965258,0.59766561,113100.0,113090.0,0.47471372]
[1758712965662,0.5685668,113100.0,113090.0,0.47471372]
[1758712965959,0.5685668,113100.0,113090.0,0.39548]
[1758712968961,0.57749336,113100.0,113090.0,0.39548]
[1758712969363,0.59753336,113100.0,113090.0,0.39548]
[1758712971269,0.5886068,113100.0,113090.0,0.39548]
[1758712971456,0.5685668,113100.0,113090.0,0.39548]
[1758712972573,0.5685668,113100.0,113090.0,0.47471372]
[1758712972970,0.5685668,113100.0,113090.0,0.83551372]
[1758712975877,0.5685668,113100.0,113090.0,0.86690192]
[1758712978076,0.5886068,113100.0,113090.0,0.86690192]
[1758712978577,0.5886068,113100.0,113090.0,0.75628]
[1758712978780,0.5685668,113100.0,113090.0,0.75628]
[1758712979075,0.5685668,113100.0,113090.0,0.83549006]
[1758712979977,0.5685668,113100.0,113090.0,0.75628]
[1758712980177,0.5685668,113100.0,113090.0,0.83549015]
[1758712980777,0.5685668,113100.0,113090.0,0.75628]
[1758712982673,0.25874481,113100.0,113090.0,0.8354906]
[1758712983074,0.27878481,113100.0,113090.0,0.8354906]
[1758712984581,0.27878481,113100.0,113090.0,0.75628]
[1758712984968,0.25874481,113100.0,113090.0,0.75628]
[1758712987085,0.25874481,113100.0,113090.0,0.83549486]
[1758712987782,0.27878481,113100.0,113090.0,0.83549486]
[1758712988777,0.27878481,113100.0,113090.0,0.75628]
[1758712990888,0.25874481,113100.0,113090.0,0.75628]
[1758712994685,0.25874481,113100.0,113090.0,0.86690192]
[1758712999690,0.011,113100.0,113090.0,0.86690192]
[1758712999888,0.25874481,113100.0,113090.0,0.86690192]
[1758713004394,0.27878481,113100.0,113090.0,0.86690192]
[1758713004994,0.25874481,113100.0,113090.0,0.86690192]
[1758713006993,0.011,113100.0,113090.0,0.86690192]
[1758713007192,0.25874481,113100.0,113090.0,0.86690192]
[1758713008494,0.25874481,113100.0,113090.0,0.14530192]
[1758713008695,0.25874481,113100.0,113090.0,0.86690192]
[1758713011098,0.25874481,113100.0,113090.0,0.75628]
[1758713013298,0.27878481,113100.0,113090.0,0.75628]
[1758713020798,0.27878481,113100.0,113090.0,0.86690192]
[1758713022408,0.27878481,113100.0,113090.0,0.75628]
[1758713028716,0.27878481,113100.0,113090.0,0.83555935]
[1758713029410,0.03104,113100.0,113090.0,0.83555935]
[1758713029714,0.27878481,113100.0,113090.0,0.83555935]
[1758713034320,0.03104,113100.0,113090.0,0.75628]
[1758713034513,0.27878481,113100.0,113090.0,0.75628]
[1758713035726,0.27878481,113100.0,113090.0,0.86690192]
[1758713036121,0.25874481,113100.0,113090.0,0.86690192]
[1758713036325,0.25874481,113100.0,113090.0,1.40402481]
[1758713036326,0.011,113100.0,113090.0,1.40402481]
[1758713036632,0.011,113100.0,113090.0,1.49244604]
[1758713036633,0.00899994,113100.0,113090.0,1.49244604]
[1758713036925,0.00899994,113100.0,113090.0,1.60306796]
[1758713037822,0.26583091,113120.0,113110.0,0.03645]
[1758713038028,0.26583091,113120.0,113110.0,0.83722331]
[1758713039426,0.26774481,113120.0,113110.0,0.83722331]
[1758713040025,0.27174481,113120.0,113110.0,0.83822331]
[1758713041227,0.024,113120.0,113110.0,1.34884523]
[1758713041422,0.024,113120.0,113110.0,1.26967192]
[1758713042124,0.024,113120.0,113110.0,1.15905]
[1758713042716,0.024,113120.0,113110.0,1.49520041]
[1758713043218,0.024,113120.0,113110.0,1.35807752]
[1758713043619,0.024,113120.0,113110.0,1.2474556]
[1758713044627,0.024,113120.0,113110.0,1.52598995]
[1758713045529,0.024,113120.0,113110.0,1.2474556]
[1758713045726,0.024,113120.0,113110.0,1.52598995]
[1758713046229,0.024,113120.0,113110.0,1.60490642]
[1758713046624,0.024,113120.0,113110.0,1.52598995]
[1758713046829,0.024,113120.0,113110.0,1.60490499]
[1758713049534,0.024,113120.0,113110.0,1.32637064]
[1758713049730,0.024,113120.0,113110.0,1.60490499]
[1758713050132,0.024,113120.0,113110.0,1.52598995]
[1758713050633,0.30253435,113120.0,113110.0,1.63661187]
[1758713050833,0.024,113120.0,113110.0,1.63661187]
[1758713051431,0.02,113120.0,113110.0,1.63561187]
[1758713051632,0.001,113120.0,113110.0,1.63561187]
[1758713052535,0.001,113120.0,113110.0,1.52498995]
[1758713052942,0.001,113120.0,113110.0,1.63561187]
[1758713053436,0.001,113120.0,113110.0,1.52498995]
[1758713057441,0.001,113120.0,113110.0,1.63561187]
[1758713061442,0.001,113120.0,113110.0,1.52498995]
[1758713062240,0.001,113120.0,113110.0,1.60388271]
[1758713063344,0.001,113120.0,113110.0,1.52498995]
[1758713064548,0.001,113120.0,113110.0,1.6039627]
[1758713066338,0.36756,113180.0,113160.0,0.01262]
[1758713066543,0.5785587,113170.0,113160.0,0.3955]
[1758713067049,0.9785587,113170.0,113160.0,0.3955]
[1758713067846,0.9785587,113170.0,113160.0,0.3965]
[1758713068245,0.70002435,113170.0,113160.0,0.46667335]
[1758713068752,0.9785587,113170.0,113160.0,0.46667335]
[1758713069549,0.70002435,113170.0,113160.0,0.46667335]
[1758713070251,0.70002435,113170.0,113160.0,0.46567335]
[1758713070446,0.70702435,113170.0,113160.0,0.46667335]
[1758713070846,0.73002435,113170.0,113160.0,0.46667335]
[1758713071949,0.45149,113170.0,113160.0,0.46667335]
[1758713072150,0.73002435,113170.0,113160.0,0.46667335]
[1758713076456,1.0085587,113170.0,113160.0,0.46667335]
[1758713079459,0.6085587,113170.0,113160.0,0.46667335]
[1758713088665,0.6163187,113170.0,113160.0,0.46667335]
[1758713089163,0.6085587,113170.0,113160.0,0.46667335]
[1758713092560,0.56712397,113170.0,113160.0,0.46667335]
[1758713092765,0.56877397,113170.0,113160.0,0.46667335]
[1758713094357,0.56877397,113170.0,113160.0,0.43197335]
[1758713094764,0.56877397,113170.0,113160.0,0.07117335]
[1758713094958,0.56877397,113170.0,113160.0,0.08445335]
[1758713095158,0.56877397,113170.0,113160.0,0.10693335]
[1758713095459,0.56877397,113170.0,113160.0,0.1859061]
[1758713097766,0.01170527,113170.0,113160.0,0.1859061]
[1758713097968,0.56877397,113170.0,113160.0,0.1859061]
[1758713098669,0.56877397,113170.0,113160.0,0.11573275]
[1758713098868,0.56877397,113170.0,113160.0,0.03676]
[1758713100568,0.56877397,113170.0,113160.0,0.39756]
[1758713101469,0.01170527,113170.0,113160.0,0.39756]
[1758713101671,0.56877397,113170.0,113160.0,0.39756]
[1758713101963,0.56877397,113170.0,113160.0,0.47653275]
[1758713104475,0.56877397,113170.0,113160.0,0.47653275]
[1758713106577,0.25920828,113170.0,113160.0,0.47653275]
[1758713108881,0.25920828,113170.0,113160.0,0.39756]
[1758713111280,0.25920828,113170.0,113160.0,0.03676]
[1758713111485,0.25920828,113170.0,113160.0,0.39756]
[1758713111885,0.01170527,113170.0,113160.0,0.39756]
[1758713112086,0.25920828,113170.0,113160.0,0.39756]
[1758713112487,0.25920828,113170.0,113160.0,0.47670305]
[1758713115090,0.25920828,113170.0,113160.0,0.39756]
[1758713116791,0.25920828,113170.0,113160.0,0.47670642]
[1758713123193,0.01170527,113170.0,113160.0,0.47670642]
[1758713123394,0.25920828,113170.0,113160.0,0.47670642]
[1758713133394,0.25920828,113170.0,113160.0,0.39756]
[1758713138606,0.01170527,113170.0,113160.0,0.39756]
[1758713138806,0.25920828,113170.0,113160.0,0.39756]
[1758713142011,0.25920828,113170.0,113160.0,0.03676]
[1758713142202,0.25920828,113170.0,113160.0,0.39756]
[1758713143110,0.25920828,113170.0,113160.0,0.47670642]
[1758713154523,0.50671129,113170.0,113160.0,0.47670642]
[1758713155818,0.50671129,113170.0,113160.0,0.39756]
[1758713160625,0.91773129,113170.0,113150.0,0.37342]
[1758713160834,0.28339301,113150.0,113140.0,0.13261192]
[1758713161128,0.26987301,113150.0,113140.0,0.22486259]
[1758713161325,0.26987301,113150.0,113140.0,0.11424067]
[1758713162526,0.27087301,113150.0,113140.0,0.11424067]
[1758713162723,0.27087301,113150.0,113140.0,0.03504]
[1758713163642,0.27287301,113150.0,113140.0,0.03504]
[1758713166545,0.30389113,113150.0,113140.0,0.03504]
[1758713172347,0.02537,113150.0,113140.0,0.03504]
[1758713172540,0.003,113150.0,113140.0,0.79584]
[1758713172751,0.28152113,113150.0,113140.0,0.79584]
[1758713181050,0.003,113150.0,113140.0,0.79584]
[1758713181250,0.28152113,113150.0,113140.0,0.79584]
[1758713183055,0.28152113,113150.0,113140.0,0.90646192]
[1758713184653,0.30325113,113150.0,113140.0,0.90646192]
[1758713189764,0.02473,113150.0,113140.0,0.90646192]
[1758713190064,0.30325113,113150.0,113140.0,0.90646192]
[1758713190264,0.02473,113150.0,113140.0,0.90646192]
[1758713190461,0.30325113,113150.0,113140.0,0.90646192]
[1758713190662,0.30325113,113150.0,113140.0,0.79584]
[1758713194066,0.30325113,113150.0,113140.0,0.39584]
[1758713194268,0.30325113,113150.0,113140.0,0.14570567]
[1758713196262,0.30325113,113150.0,113140.0,0.50650567]
[1758713197370,0.02473,113150.0,113140.0,0.50650567]
[1758713197569,0.30325113,113150.0,113140.0,0.50650567]
[1758713199372,0.30325113,113150.0,113140.0,0.39584]
[1758713200773,0.02473,113150.0,113140.0,0.39584]
[1758713200975,0.30325113,113150.0,113140.0,0.39584]
[1758713202972,0.30325113,113150.0,113140.0,0.50663529]
[1758713209278,0.30325113,113150.0,113140.0,0.39584]
[1758713213687,0.02473,113150.0,113140.0,0.39584]
[1758713213887,0.30325113,113150.0,113140.0,0.39584]
[1758713215486,0.30325113,113150.0,113140.0,0.03504]
[1758713216794,0.30325113,113150.0,113140.0,0.14583529]
[1758713217190,0.30325113,113150.0,113140.0,0.03504]
[1758713217386,0.30325113,113150.0,113140.0,0.14585244]
[1758713217894,0.30325113,113150.0,113140.0,0.03504]
[1758713220405,0.30325113,113150.0,113140.0,0.14585991]
[1758713221708,1.35618226,113150.0,113140.0,0.14585991]
[1758713222005,0.03429,113140.0,113130.0,0.10084191]
[1758713222307,0.95213226,113140.0,113130.0,0.10084191]
[1758713222508,1.35213226,113140.0,113130.0,0.10084191]
[1758713224303,1.35213226,113140.0,113130.0,0.10584191]
[1758713224707,1.35313226,113140.0,113130.0,0.10584191]
[1758713226711,1.04374812,113140.0,113130.0,0.10584191]
[1758713226908,1.04374812,113140.0,113130.0,0.08418191]
[1758713228311,1.04374812,113140.0,113130.0,0.005]
[1758713230416,1.04374812,113140.0,113130.0,0.02666]
[1758713239018,1.04374812,113140.0,113130.0,0.005]
[1758713240526,1.04374812,113140.0,113130.0,0.0283]
[1758713240921,1.04374812,113140.0,113130.0,0.005]
[1758713241120,1.04374812,113140.0,113130.0,0.0283]
[1758713242324,0.79609,113140.0,113130.0,0.0283]
[1758713242624,1.04374812,113140.0,113130.0,0.0283]
[1758713244929,1.04374812,113140.0,113130.0,0.005]
[1758713249632,1.04374812,113140.0,113130.0,0.08418191]
[1758713249832,1.04374812,113140.0,113130.0,0.005]
[1758713250231,0.01306,113120.0,113110.0,0.11081991]
[1758713250532,0.89075624,113120.0,113110.0,0.13411991]
[1758713250832,0.89075624,113120.0,113110.0,0.0233]
[1758713251233,0.89075624,113120.0,113100.0,0.12451991]
[1758713251433,0.64309812,113110.0,113100.0,0.14781991]
[1758713251633,0.64009812,113110.0,113100.0,0.14781991]
[1758713251834,0.64009812,113110.0,113100.0,0.037]
[1758713252032,0.62409812,113110.0,113100.0,0.037]
[1758713252332,0.63286279,113110.0,113100.0,0.037]
[1758713254235,0.63286279,113110.0,113100.0,0.039]
[1758713254835,0.63786279,113110.0,113100.0,0.039]
[1758713255337,0.63786279,113110.0,113100.0,0.037]
[1758713255537,0.63786279,113110.0,113100.0,0.039]
[1758713255835,0.63786279,113110.0,113100.0,0.002]
[1758713256438,1.03786279,113110.0,113100.0,0.002]
[1758713258240,1.03786279,113110.0,113090.0,0.01262]
[1758713258542,0.26923812,113100.0,113090.0,0.39672]
[1758713259241,0.3403962,113100.0,113090.0,0.39672]
[1758713260041,0.3513962,113100.0,113090.0,0.39672]
[1758713260344,0.3513962,113100.0,113090.0,0.03592]
[1758713262239,0.3513962,113100.0,113090.0,0.03692]
[1758713276141,0.3573862,113100.0,113090.0,0.0243]
[1758713278656,0.3573862,113100.0,113090.0,0.001]
[1758713279846,0.3573862,113100.0,113090.0,0.02296]
[1758713280647,0.3573862,113100.0,113090.0,0.001]
[1758713285855,0.3573862,113100.0,113090.0,0.02296]
[1758713288557,0.66728966,113100.0,113090.0,0.03676]
[1758713288863,0.66129966,113100.0,113090.0,0.03676]
[1758713300876,0.61984032,113100.0,113090.0,0.03676]
[1758713301067,0.63397032,113100.0,113090.0,0.03676]
[1758713301267,0.63397032,113100.0,113090.0,0.14757991]
[1758713303074,0.63397032,113100.0,113090.0,0.03676]
[1758713305474,0.07640874,113100.0,113090.0,0.03676]
[1758713305676,0.63397032,113100.0,113090.0,0.03676]
[1758713310179,0.63397032,113100.0,113090.0,0.14757991]
[1758713313282,0.63397032,113100.0,113090.0,0.12561991]
[1758713314381,0.63397032,113100.0,113090.0,0.14894991]
[1758713316377,0.63397032,113100.0,113090.0,0.12561991]
[1758713318479,0.63397032,113100.0,113090.0,0.001]
[1758713318681,0.91275111,113100.0,113090.0,0.001]
[1758713319487,0.63397032,113100.0,113090.0,0.001]
[1758713320581,0.91275111,113100.0,113090.0,0.001]
[1758713320782,0.63397032,113100.0,113090.0,0.001]
[1758713327189,0.91275111,113100.0,113090.0,0.001]
[1758713329490,0.91275111,113100.0,113090.0,0.00096]
[1758713330184,0.07640874,113100.0,113090.0,0.00096]
[1758713330694,0.63397032,113100.0,113090.0,0.00096]
[1758713331789,0.91275111,113100.0,113090.0,0.00096]
[1758713332092,0.63397032,113100.0,113090.0,0.00096]
[1758713332892,0.91275111,113100.0,113090.0,0.00096]
[1758713333487,0.63397032,113100.0,113090.0,0.00096]
[1758713335494,0.91275111,113100.0,113090.0,0.00096]
[1758713339898,0.63397032,113100.0,113090.0,0.00096]
[1758713340601,0.63397032,113100.0,113090.0,0.03702]
[1758713342097,0.35518953,113100.0,113090.0,0.43702]
[1758713342290,0.63397032,113100.0,113090.0,0.43702]
[1758713342803,0.58269158,113100.0,113090.0,0.43702]
[1758713343098,0.02513,113100.0,113090.0,0.43702]
[1758713343397,0.58269158,113100.0,113090.0,0.43702]
[1758713344194,0.58269158,113100.0,113090.0,0.43686]
[1758713345802,0.30391079,113100.0,113090.0,0.43686]
[1758713346000,0.58269158,113100.0,113090.0,0.43686]
[1758713346303,0.30391079,113100.0,113090.0,0.43686]
[1758713346895,0.56856158,113100.0,113090.0,0.43686]
[1758713347201,0.56856158,113100.0,113090.0,0.54767991]
[1758713347396,0.58269158,113100.0,113090.0,0.54767991]
[1758713347590,0.58269158,113100.0,113090.0,0.43686]
[1758713350008,0.58269158,113100.0,113090.0,0.54767991]
[1758713350607,0.27288539,113100.0,113090.0,0.54767991]
[1758713351307,0.27288539,113100.0,113090.0,0.14767991]
[1758713351604,0.02513,113100.0,113090.0,0.14767991]
[1758713351803,0.27288539,113100.0,113090.0,0.14767991]
[1758713351999,0.27288539,113100.0,113090.0,0.03686]
[1758713352601,0.27288539,113100.0,113090.0,0.01453]
[1758713352798,0.27288539,113100.0,113090.0,0.0008]
[1758713353506,0.68171539,113100.0,113090.0,0.0008]
[1758713354109,0.68171539,113100.0,113080.0,0.37342]
[1758713354306,0.26188539,113090.0,113080.0,0.39575]
[1758713356107,0.26188539,113090.0,113080.0,0.79575]
[1758713356606,0.26188539,113090.0,113080.0,0.79875]
[1758713357306,0.26188539,113090.0,113080.0,0.80075]
[1758713357508,0.24775539,113090.0,113080.0,0.80075]
[1758713359004,0.24775539,113090.0,113080.0,0.80071]
[1758713359909,0.24775539,113090.0,113080.0,0.79871]
[1758713360105,0.24775539,113090.0,113080.0,0.80071]
[1758713361616,0.00866213,113110.0,113080.0,0.80071]
[1758713361911,0.0142,113110.0,113100.0,0.03544]
[1758713362907,0.26195539,113110.0,113100.0,0.03544]
[1758713364202,0.26995539,113110.0,113100.0,0.03544]
[1758713365407,0.27095539,113110.0,113100.0,0.03544]
[1758713365807,0.22949785,113110.0,113100.0,0.03544]
[1758713366008,0.23850522,113110.0,113100.0,0.03544]
[1758713367604,0.009,113110.0,113100.0,0.03544]
[1758713367805,0.009,113110.0,113100.0,0.43544]
[1758713368006,0.25675539,113110.0,113100.0,0.43544]
[1758713378718,0.25675539,113110.0,113100.0,0.03544]
[1758713383022,0.25675539,113110.0,113090.0,0.11081991]
[1758713383223,0.24775539,113100.0,113090.0,0.14625991]
[1758713384624,0.24775539,113100.0,113090.0,0.03544]
[1758713384818,0.24775539,113100.0,113090.0,0.14608232]
[1758713385618,0.24775539,113100.0,113090.0,0.43544]
[1758713385824,0.24775539,113100.0,113090.0,0.54611419]
[1758713386012,0.25075539,113100.0,113090.0,0.54611419]
[1758713386517,0.25075539,113100.0,113090.0,0.51067419]
[1758713386724,0.25075539,113100.0,113090.0,0.54611419]
[1758713389027,0.25075539,113100.0,113090.0,0.43544]
[1758713391124,0.25075539,113100.0,113090.0,0.54611419]
[1758713391628,0.003,113100.0,113090.0,0.54611419]
[1758713391831,0.25075539,113100.0,113090.0,0.54611419]
[1758713396232,0.25075539,113100.0,113090.0,0.43544]
[1758713398026,0.25075539,113100.0,113090.0,0.03544]
[1758713404742,0.25075539,113100.0,113090.0,0.14611419]
[1758713405542,0.25075539,113100.0,113090.0,0.03544]
[1758713407548,0.25075539,113100.0,113090.0,0.14611419]
[1758713407748,0.003,113100.0,113090.0,0.14611419]
[1758713408045,0.25075539,113100.0,113090.0,0.14611419]
[1758713408748,0.003,113100.0,113090.0,0.14611419]
[1758713408948,0.25075539,113100.0,113090.0,0.14611419]
[1758713410550,0.28167949,113100.0,113090.0,0.14611419]
[1758713410745,0.28167949,113100.0,113090.0,0.54611419]
[1758713412650,0.28167949,113100.0,113090.0,0.61671285]
[1758713414352,0.28167949,113100.0,113090.0,0.50603866]
[1758713415152,0.28167949,113100.0,113090.0,0.61689249]
[1758713415554,0.003,113100.0,113090.0,0.61689249]
[1758713415856,0.28167949,113100.0,113090.0,0.61689249]
[1758713421462,0.28167949,113100.0,113090.0,0.50603866]
[1758713422261,0.28167949,113100.0,113090.0,0.61688933]
[1758713423361,0.28167949,113100.0,113090.0,0.98399005]
[1758713423362,0.00179063,113100.0,113090.0,0.98399005]
[1758713423559,0.27867949,113130.0,113120.0,0.03557]
[1758713423754,0.55735898,113130.0,113120.0,0.03557]
[1758713424658,0.56624956,113130.0,113120.0,0.03557]
[1758713424858,0.57635898,113130.0,113120.0,0.03557]
[1758713425350,0.58035898,113130.0,113120.0,0.03557]
[1758713429268,0.023,113130.0,113120.0,0.03557]
[1758713429565,0.58035898,113130.0,113120.0,0.03557]
[1758713430069,0.58035898,113130.0,113120.0,0.14638302]
[1758713431466,0.023,113130.0,113120.0,0.14638302]
[1758713431669,0.58035898,113130.0,113120.0,0.14638302]
[1758713431871,0.28867949,113130.0,113120.0,0.42506251]
[1758713432071,0.28867949,113130.0,113120.0,0.14638302]
[1758713433271,0.28567949,113130.0,113120.0,0.14638302]
[1758713438078,0.007,113130.0,113120.0,0.14638302]
[1758713438381,0.28567949,113130.0,113120.0,0.14638302]
[1758713438579,0.28567949,113130.0,113120.0,0.42506251]
[1758713438880,0.28567949,113130.0,113120.0,0.14638302]
[1758713440482,0.28567949,113130.0,113120.0,0.03557]
[1758713444583,0.28567949,113130.0,113120.0,0.40264728]
[1758713445186,0.28567949,113130.0,113120.0,0.12396779]
[1758713449387,0.007,113130.0,113120.0,0.12396779]
[1758713449586,0.28567949,113130.0,113120.0,0.12396779]
[1758713450686,0.28567949,113130.0,113120.0,0.23478081]
[1758713451782,0.56435898,113130.0,113120.0,0.14638302]
[1758713452086,0.56435898,113130.0,113120.0,0.03557]
[1758713452580,0.96435898,113130.0,113120.0,0.03557]
[1758713472615,0.654658,113130.0,113120.0,0.03557]
[1758713472812,0.654658,113130.0,113120.0,0.39637]
[1758713473313,0.407,113130.0,113120.0,0.39637]
[1758713473509,0.654658,113130.0,113120.0,0.39637]
[1758713474106,0.407,113130.0,113120.0,0.39637]
[1758713474311,0.654658,113130.0,113120.0,0.50718302]
[1758713475012,0.654658,113130.0,113120.0,0.39637]
[1758713477516,0.654658,113130.0,113120.0,0.03557]
[1758713485220,0.902316,113130.0,113110.0,0.39733]
[1758713485523,0.495316,113120.0,113110.0,0.14734302]
[1758713485720,0.495316,113120.0,113110.0,0.03653]
[1758713487318,0.495316,113120.0,113110.0,0.14734302]
[1758713488228,0.495316,113120.0,113110.0,0.14834302]
[1758713488629,0.495316,113120.0,113110.0,0.03753]
[1758713489026,0.856116,113120.0,113110.0,0.03753]
[1758713489221,0.495316,113120.0,113110.0,0.03653]
[1758713489426,0.495316,113120.0,113110.0,0.03753]
[1758713491831,0.495316,113120.0,113110.0,0.03653]
[1758713492032,0.495316,113120.0,113110.0,0.03753]
[1758713493034,0.3608,113130.0,113120.0,0.03633]
[1758713493232,0.608458,113130.0,113120.0,0.03633]
[1758713494226,0.247658,113130.0,113120.0,0.03633]
[1758713494426,0.253658,113130.0,113120.0,0.03633]
[1758713495936,0.254658,113130.0,113120.0,0.03633]
[1758713497530,0.254658,113130.0,113110.0,0.50814302]
[1758713497736,0.495316,113120.0,113110.0,0.50814302]
[1758713499240,0.247658,113120.0,113110.0,0.50814302]
[1758713499837,0.247658,113120.0,113110.0,0.50914302]
[1758713500838,0.247658,113120.0,113110.0,0.50814302]
[1758713501039,0.247658,113120.0,113110.0,0.50914302]
[1758713502236,0.495316,113120.0,113110.0,0.48632302]
[1758713502438,0.495316,113120.0,113110.0,0.50914302]
[1758713503039,0.495316,113120.0,113110.0,0.39833]
[1758713505242,0.4909,113140.0,113110.0,0.39833]
[1758713505543,0.495316,113120.0,113110.0,0.39833]
[1758713505939,0.495316,113120.0,113110.0,0.03753]
[1758713506842,0.495316,113120.0,113110.0,0.01471]
[1758713508244,0.495316,113120.0,113110.0,0.01371]
[1758713508443,0.495316,113120.0,113110.0,0.01471]
[1758713509745,0.495316,113120.0,113110.0,0.03746]
[1758713512045,0.495316,113120.0,113110.0,0.03646]
[1758713512244,0.495316,113120.0,113110.0,0.03746]
[1758713513945,0.495316,113120.0,113110.0,0.001]
[1758713514344,0.495316,113120.0,113110.0,0.01402]
[1758713514542,0.495316,113120.0,113110.0,0.03677]
[1758713515948,0.495316,113120.0,113110.0,0.03577]
[1758713516149,0.495316,113120.0,113110.0,0.03677]
[1758713516748,0.495316,113120.0,113110.0,0.01402]
[1758713517148,0.495316,113120.0,113110.0,0.12483302]
[1758713517545,0.495316,113120.0,113110.0,0.11181302]
[1758713518647,0.856116,113120.0,113110.0,0.11181302]
[1758713519850,0.862116,113120.0,113110.0,0.11081302]
[1758713520050,0.863116,113120.0,113110.0,0.11081302]
[1758713520750,1.263116,113120.0,113100.0,0.01371]
[1758713520952,0.247658,113110.0,113100.0,0.01371]
[1758713521852,0.247658,113110.0,113100.0,0.03687]
[1758713523257,0.25642582,113110.0,113100.0,0.03687]
[1758713524149,0.25642582,113110.0,113100.0,0.03787]
[1758713527252,0.25642582,113110.0,113100.0,0.01471]
[1758713527666,0.25642582,113110.0,113100.0,0.01371]
[1758713527857,0.25642582,113110.0,113100.0,0.01471]
[1758713528366,0.25642582,113110.0,113100.0,0.03787]
[1758713530458,0.25642582,113110.0,113100.0,0.03687]
[1758713530659,0.25642582,113110.0,113100.0,0.03787]
[1758713532568,0.566234,113110.0,113100.0,0.03787]
[1758713535378,0.566234,113110.0,113100.0,0.39867]
[1758713535677,0.566234,113110.0,113100.0,0.03787]
[1758713535879,0.566234,113110.0,113100.0,0.39867]
[1758713546592,0.566234,113110.0,113100.0,0.50948302]
[1758713550785,0.566234,113110.0,113100.0,0.48632302]
[1758713550987,0.00876782,113110.0,113100.0,0.47261302]
[1758713551286,0.55746618,113110.0,113090.0,0.03509]
[1758713551478,0.55746618,113100.0,113090.0,0.39589]